fUST/lending_fUST_20240924
["ID","MTS","AMOUNT","RATE_DAILY","PERIOD"]
[338993862,1727109048897,-500.0,0.0003315,30]
[338993863,1727109048906,-3090.81,0.0003315,21]
[338993864,1727109048916,-500.0,0.0003315,30]
[338993865,1727109048927,-500.0,0.0003315,30]
[338993866,1727109048936,-500.0,0.0003315,30]
[338993867,1727109048945,-500.0,0.0003315,30]
[338993868,1727109048954,-977.0,0.0003315,30]
[338993869,1727109048964,-500.0,0.0003315,30]
[338993870,1727109048974,-500.0,0.0003315,30]
[338993871,1727109048983,-500.0,0.0003315,30]
[338993872,1727109048992,-500.0,0.0003315,30]
[338993873,1727109049002,-154.71097516,0.0003315,30]
[338993874,1727109049011,-500.0,0.0003315,30]
[338993875,1727109049021,-500.0,0.0003315,30]
[338993876,1727109049030,-808.45,0.0003315,30]
[338993877,1727109049039,-500.0,0.0003315,30]
[338993878,1727109049049,-162.87178298,0.0003315,30]
[338993879,1727109049058,-500.0,0.0003315,30]
[338993880,1727109049067,-500.0,0.0003315,30]
[338993881,1727109049077,-372.54453474,0.0003315,30]
[338993882,1727109049086,-500.0,0.0003315,30]
[338993883,1727109049096,-500.0,0.0003315,30]
[338993884,1727109049105,-500.0,0.0003315,30]
[338993885,1727109049114,-510.97820091,0.0003315,30]
[338993886,1727109049124,-500.0,0.0003315,30]
[338993887,1727109049134,-500.0,0.0003315,30]
[338993888,1727109049143,-642.11354622,0.0003315,30]
[338993889,1727109049152,-172.01595444,0.0003315,30]
[338993890,1727109049164,-500.0,0.0003315,30]
[338993891,1727109049174,-500.0,0.0003315,30]
[338993892,1727109049184,-1295.57,0.0003315,30]
[338993893,1727109049194,-1141.59,0.0003315,30]
[338993894,1727109049203,-605.9834207,0.0003315,30]
[338993895,1727109049213,-500.0,0.0003315,30]
[338993896,1727109049222,-500.0,0.0003315,30]
[338993897,1727109049231,-653.76,0.0003315,30]
[338993898,1727109049241,-500.0,0.0003315,30]
[338993899,1727109049251,-500.0,0.0003315,30]
[338993900,1727109049260,-500.0,0.0003315,30]
[338993901,1727109049269,-500.0,0.0003315,30]
[338993902,1727109049279,-500.0,0.0003315,30]
[338993903,1727109049288,-500.0,0.0003315,30]
[338993904,1727109049298,-500.0,0.0003315,30]
[338993905,1727109049308,-500.0,0.0003315,30]
[338993906,1727109049317,-203.78288175,0.0003315,30]
[338993907,1727109049327,-500.0,0.0003315,30]
[338993908,1727109049336,-1162.072348,0.0003315,14]
[338993909,1727109049346,-500.0,0.0003315,30]
[338993910,1727109049355,-500.0,0.0003315,30]
[338993911,1727109049365,-500.0,0.0003315,30]
[338993912,1727109049374,-500.0,0.0003315,30]
[338993913,1727109049384,-1162.072348,0.0003315,14]
[338993914,1727109049394,-500.0,0.0003315,30]
[338993915,1727109049403,-500.0,0.0003315,30]
[338993916,1727109049412,-500.0,0.0003315,30]
[338993917,1727109049424,-300.015385,0.00033165,2]
[338993918,1727109049434,-964.21328678,0.00033187,2]
[338993919,1727109049443,-1693.18825843,0.00033187,120]
[338993920,1727109049453,-150.112233,0.000332,7]
[338993921,1727109049462,-2157.21510493,0.00033277,21]
[338993922,1727109049472,-151.0,0.00033277,14]
[338993923,1727109049481,-237.310555,0.00033277,14]
[338993924,1727109049490,-151.0,0.00033277,14]
[338993925,1727109049500,-237.310555,0.00033277,14]
[338993926,1727109049509,-151.0,0.00033277,14]
[338993927,1727109049519,-589.503631,0.00033277,14]
[338993928,1727109049528,-589.503631,0.00033277,14]
[338993929,1727109049537,-151.0,0.00033277,14]
[338993930,1727109049547,-151.0,0.00033277,14]
[338993931,1727109049557,-151.0,0.00033277,14]
[338993932,1727109049566,-946.063183,0.00033277,14]
[338993933,1727109049575,-946.063183,0.00033277,14]
[338993934,1727109049584,-151.0,0.00033277,14]
[338993935,1727109049594,-151.0,0.00033277,14]
[338993936,1727109049604,-489.448798,0.00033277,14]
[338993937,1727109049712,-836.942813,0.00033277,14]
[338993938,1727109049722,-720.440175,0.00033277,14]
[338993939,1727109049731,-489.448798,0.00033277,14]
[338993940,1727109049740,-720.440175,0.00033277,14]
[338993941,1727109049750,-836.942813,0.00033277,14]
[338993942,1727109049761,-151.0,0.00033277,14]
[338993943,1727109049770,-151.0,0.00033277,14]
[338993944,1727109049779,-151.0,0.00033277,14]
[338993945,1727109049789,-929.4729,0.00033277,14]
[338993946,1727109049799,-929.4729,0.00033277,14]
[338993947,1727109049808,-774.317821,0.00033277,14]
[338993948,1727109049817,-774.317821,0.00033277,14]
[338993949,1727109049827,-2758.427387,0.00033277,14]
[338993950,1727109049836,-2758.427387,0.00033277,14]
[338993951,1727109049845,-188.921246,0.00033277,14]
[338993952,1727109049855,-188.921246,0.00033277,14]
[338993953,1727109049864,-1162.072348,0.00033277,14]
[338993954,1727109049874,-1162.072348,0.00033277,14]
[338993955,1727109049884,-34499.530147,0.00033277,5]
[338993956,1727109049894,-682.339607,0.00033286,14]
[338993957,1727109049903,-151.0,0.00033286,14]
[338993958,1727109049912,-682.339607,0.00033286,14]
[338993959,1727109049923,-500.0,0.00033286,30]
[338993960,1727109049933,-500.0,0.00033286,30]
[338993961,1727109049942,-2684.728953,0.00033286,14]
[338993962,1727109049952,-2684.728953,0.00033286,14]
[338993963,1727109049962,-381.589065,0.00033286,14]
[338993964,1727109049972,-381.589065,0.00033286,14]
[338993965,1727109049982,-500.0,0.00033287,30]
[338993966,1727109049991,-500.0,0.00033287,30]
[338993967,1727109050001,-500.0,0.00033287,30]
[338993968,1727109050011,-500.0,0.00033287,120]
[338993969,1727109050020,-500.0,0.00033287,30]
[338993970,1727109050029,-500.0,0.00033287,30]
[338993971,1727109050039,-500.0,0.00033287,30]
[338993972,1727109050048,-500.0,0.00033287,30]
[338993973,1727109050057,-500.0,0.00033287,30]
[338993974,1727109050066,-500.0,0.00033287,30]
[338993975,1727109050075,-500.0,0.00033287,30]
[338993976,1727109050084,-500.0,0.00033287,30]
[338993977,1727109050093,-2662.27,0.00033287,30]
[338993978,1727109050102,-500.0,0.00033287,30]
[338993979,1727109050112,-465.28596596,0.00033287,30]
[338993980,1727109050121,-500.0,0.00033287,30]
[338993981,1727109050130,-500.0,0.00033287,30]
[338993982,1727109050139,-918.02,0.00033287,2]
[338993983,1727109050148,-500.0,0.00033287,30]
[338993984,1727109050161,-500.85403557,0.00033287,30]
[338993985,1727109050172,-500.0,0.00033287,30]
[338993986,1727109050181,-500.0,0.00033287,30]
[338993987,1727109050190,-500.0,0.00033287,30]
[338993988,1727109050201,-500.0,0.00033287,30]
[338993989,1727109050210,-617.43,0.00033287,30]
[338993990,1727109050219,-151.0,0.00033287,14]
[338993991,1727109050229,-500.0,0.00033287,30]
[338993992,1727109050238,-500.0,0.00033287,30]
[338993993,1727109050248,-151.0,0.00033287,14]
[338993994,1727109050257,-391.486478,0.00033287,14]
[338993995,1727109050267,-391.486478,0.00033287,14]
[338993996,1727109050277,-500.0,0.00033287,30]
[338993997,1727109050287,-500.0,0.00033287,30]
[338993998,1727109050297,-151.0,0.00033287,14]
[338993999,1727109050306,-500.0,0.00033287,30]
[338994000,1727109050316,-500.0,0.00033287,30]
[338994001,1727109050326,-500.0,0.00033287,30]
[338994002,1727109050336,-500.0,0.00033287,30]
[338994003,1727109050345,-500.0,0.00033287,30]
[338994004,1727109050354,-500.0,0.00033287,30]
[338994005,1727109050363,-4309.370918,0.00033287,14]
[338994006,1727109050373,-4309.370918,0.00033287,14]
[338994007,1727109050382,-500.0,0.00033287,30]
[338994008,1727109050391,-887.197973,0.00033287,2]
[338994009,1727109050401,-493.65810684,0.00033287,30]
[338994010,1727109050411,-887.197973,0.00033287,2]
[338994011,1727109050422,-500.0,0.00033287,30]
[338994012,1727109050432,-629.65,0.00033287,30]
[338994013,1727109050442,-500.0,0.00033287,30]
[338994014,1727109050451,-500.0,0.00033287,30]
[338994015,1727109050461,-500.0,0.00033287,30]
[338994016,1727109050470,-500.0,0.00033287,30]
[338994017,1727109050479,-1112.96,0.00033287,30]
[338994018,1727109050489,-500.0,0.00033287,30]
[338994019,1727109050498,-507.61860167,0.00033287,30]
[338994020,1727109050508,-500.0,0.00033287,30]
[338994021,1727109050520,-500.0,0.00033287,30]
[338994022,1727109050529,-500.0,0.00033287,120]
[338994023,1727109050538,-500.0,0.00033287,30]
[338994024,1727109050547,-500.0,0.00033287,30]
[338994025,1727109050556,-21285.95,0.00033287,18]
[338994026,1727109050566,-500.0,0.00033287,30]
[338994027,1727109050576,-3090.81,0.00033287,21]
[338994028,1727109050585,-500.0,0.00033287,30]
[338994029,1727109050594,-500.0,0.00033287,30]
[338994030,1727109050604,-500.0,0.00033287,30]
[338994031,1727109050614,-977.0,0.00033287,30]
[338994032,1727109050623,-500.0,0.00033287,30]
[338994033,1727109050633,-500.0,0.00033287,30]
[338994034,1727109050642,-500.0,0.00033287,30]
[338994035,1727109050651,-442.3221628,0.00033287,30]
[338994036,1727109050661,-808.45,0.00033287,30]
[338994037,1727109050673,-500.0,0.00033287,30]
[338994038,1727109050683,-500.0,0.00033287,30]
[338994039,1727109050692,-500.0,0.00033287,30]
[338994040,1727109050701,-500.0,0.00033287,30]
[338994041,1727109050710,-609.59514435,0.00033287,30]
[338994042,1727109050719,-500.0,0.00033287,30]
[338994043,1727109050728,-158.82163982,0.00033287,30]
[338994044,1727109050737,-500.0,0.00033287,30]
[338994045,1727109050746,-500.0,0.00033287,30]
[338994046,1727109050756,-1295.57,0.00033287,30]
[338994047,1727109050765,-1141.59,0.00033287,30]
[338994048,1727109050775,-500.0,0.00033287,30]
[338994049,1727109050784,-500.0,0.00033287,30]
[338994050,1727109050794,-653.76,0.00033287,30]
[338994051,1727109050803,-500.0,0.00033287,30]
[338994052,1727109050812,-519.33672888,0.00033287,30]
[338994053,1727109050821,-500.0,0.00033287,30]
[338994054,1727109050830,-500.0,0.00033287,30]
[338994055,1727109050839,-500.0,0.00033287,30]
[338994056,1727109050848,-506.58309336,0.00033287,30]
[338994057,1727109050858,-216.57562199,0.00033287,30]
[338994058,1727109050867,-500.0,0.00033287,30]
[338994059,1727109050876,-500.0,0.00033287,30]
[338994060,1727109050885,-500.0,0.00033287,30]
[338994061,1727109050895,-500.0,0.00033287,30]
[338994062,1727109050904,-500.0,0.00033287,30]
[338994063,1727109050914,-500.0,0.00033287,30]
[338994064,1727109050925,-503.49640665,0.00033287,30]
[338994065,1727109050934,-150.112233,0.000333,6]
[338994066,1727109050943,-1846.36243566,0.0003332,2]
[338994067,1727109050953,-150.112233,0.000334,8]
[338994068,1727109050963,-500.0,0.00033423,30]
[338994069,1727109050972,-500.0,0.00033423,30]
[338994070,1727109050982,-500.0,0.00033424,30]
[338994071,1727109050991,-500.0,0.00033424,30]
[338994072,1727109051001,-500.0,0.00033424,30]
[338994073,1727109051010,-500.0,0.00033424,120]
[338994074,1727109051019,-500.0,0.00033424,30]
[338994075,1727109051028,-580.99,0.00033424,30]
[338994076,1727109051037,-500.0,0.00033424,30]
[338994077,1727109051046,-500.0,0.00033424,30]
[338994078,1727109051055,-500.0,0.00033424,30]
[338994079,1727109051065,-500.0,0.00033424,30]
[338994080,1727109051074,-500.0,0.00033424,30]
[338994081,1727109051083,-500.0,0.00033424,30]
[338994082,1727109051092,-2662.27,0.00033424,30]
[338994083,1727109051102,-500.0,0.00033424,30]
[338994084,1727109051112,-500.0,0.00033424,30]
[338994085,1727109051121,-918.02,0.00033424,2]
[338994086,1727109051130,-500.0,0.00033424,30]
[338994087,1727109051139,-625.60555415,0.00033424,30]
[338994088,1727109051150,-500.0,0.00033424,30]
[338994089,1727109051162,-553.26371362,0.00033424,30]
[338994090,1727109051173,-500.0,0.00033424,30]
[338994091,1727109051182,-500.0,0.00033424,30]
[338994092,1727109051191,-500.0,0.00033424,30]
[338994093,1727109051202,-500.0,0.00033424,30]
[338994094,1727109051211,-500.0,0.00033424,30]
[338994095,1727109051221,-500.0,0.00033424,30]
[338994096,1727109051231,-500.0,0.00033424,30]
[338994097,1727109051241,-500.0,0.00033424,30]
[338994098,1727109051251,-500.0,0.00033424,30]
[338994099,1727109051260,-314.61659226,0.00033424,30]
[338994100,1727109051269,-629.65,0.00033424,30]
[338994101,1727109051278,-500.0,0.00033424,30]
[338994102,1727109051287,-500.0,0.00033424,30]
[338994103,1727109051296,-500.0,0.00033424,30]
[338994104,1727109051306,-500.0,0.00033424,30]
[338994105,1727109051316,-1112.96,0.00033424,30]
[338994106,1727109051325,-151.0,0.00033424,14]
[338994107,1727109051334,-237.310555,0.00033424,14]
[338994108,1727109051343,-500.0,0.00033424,30]
[338994109,1727109051353,-151.0,0.00033424,14]
[338994110,1727109051362,-237.310555,0.00033424,14]
[338994111,1727109051371,-151.0,0.00033424,14]
[338994112,1727109051381,-520.72926784,0.00033424,30]
[338994113,1727109051390,-344.69687937,0.00033424,30]
[338994114,1727109051400,-500.0,0.00033424,120]
[338994115,1727109051410,-500.0,0.00033424,30]
[338994116,1727109051420,-517.65105946,0.00033424,30]
[338994117,1727109051431,-589.503631,0.00033424,14]
[338994118,1727109051440,-21285.95,0.00033424,18]
[338994119,1727109051449,-500.0,0.00033424,30]
[338994120,1727109051459,-589.503631,0.00033424,14]
[338994121,1727109051468,-151.0,0.00033424,14]
[338994122,1727109051478,-151.0,0.00033424,14]
[338994123,1727109051487,-3090.81,0.00033424,21]
[338994124,1727109051496,-151.0,0.00033424,14]
[338994125,1727109051505,-500.0,0.00033424,30]
[338994126,1727109051514,-946.063183,0.00033424,14]
[338994127,1727109051524,-946.063183,0.00033424,14]
[338994128,1727109051533,-151.0,0.00033424,14]
[338994129,1727109051542,-500.0,0.00033424,30]
[338994130,1727109051551,-151.0,0.00033424,14]
[338994131,1727109051560,-489.448798,0.00033424,14]
[338994132,1727109051569,-836.942813,0.00033424,14]
[338994133,1727109051578,-720.440175,0.00033424,14]
[338994134,1727109051587,-489.448798,0.00033424,14]
[338994135,1727109051596,-235.07765032,0.00033424,30]
[338994136,1727109051605,-720.440175,0.00033424,14]
[338994137,1727109051614,-836.942813,0.00033424,14]
[338994138,1727109051624,-682.339607,0.00033424,14]
[338994139,1727109051633,-151.0,0.00033424,14]
[338994140,1727109051642,-682.339607,0.00033424,14]
[338994141,1727109051651,-977.0,0.00033424,30]
[338994142,1727109051660,-500.0,0.00033424,30]
[338994143,1727109051669,-500.0,0.00033424,30]
[338994144,1727109051687,-370.97041485,0.00033424,30]
[338994145,1727109051697,-808.45,0.00033424,30]
[338994146,1727109051706,-500.0,0.00033424,30]
[338994147,1727109051715,-151.0,0.00033424,14]
[338994148,1727109051724,-151.0,0.00033424,14]
[338994149,1727109051732,-500.0,0.00033424,30]
[338994150,1727109051834,-500.0,0.00033424,30]
[338994151,1727109051844,-205.07719223,0.00033424,30]
[338994152,1727109051854,-2684.728953,0.00033424,14]
[338994153,1727109051863,-2684.728953,0.00033424,14]
[338994154,1727109051872,-500.0,0.00033424,30]
[338994155,1727109051882,-500.0,0.00033424,30]
[338994156,1727109051892,-929.4729,0.00033424,14]
[338994157,1727109051901,-500.0,0.00033424,30]
[338994158,1727109051909,-1295.57,0.00033424,30]
[338994159,1727109051919,-929.4729,0.00033424,14]
[338994160,1727109051931,-1141.59,0.00033424,30]
[338994161,1727109051940,-774.317821,0.00033424,14]
[338994162,1727109051949,-505.53483742,0.00033424,30]
[338994163,1727109051959,-774.317821,0.00033424,14]
[338994164,1727109051968,-500.0,0.00033424,30]
[338994165,1727109051977,-653.76,0.00033424,30]
[338994166,1727109051986,-500.0,0.00033424,30]
[338994167,1727109051995,-2758.427387,0.00033424,14]
[338994168,1727109052004,-527.75396956,0.00033424,30]
[338994169,1727109052014,-559.2346792,0.00033424,30]
[338994170,1727109052023,-500.0,0.00033424,30]
[338994171,1727109052032,-2758.427387,0.00033424,14]
[338994172,1727109052042,-188.921246,0.00033424,14]
[338994173,1727109052051,-188.921246,0.00033424,14]
[338994174,1727109052060,-500.0,0.00033424,30]
[338994175,1727109052070,-500.0,0.00033424,30]
[338994176,1727109052079,-381.589065,0.00033424,14]
[338994177,1727109052089,-500.0,0.00033424,30]
[338994178,1727109052099,-1162.072348,0.00033424,14]
[338994179,1727109052109,-500.0,0.00033424,30]
[338994180,1727109052118,-381.589065,0.00033424,14]
[338994181,1727109052128,-500.0,0.00033424,30]
[338994182,1727109052137,-1162.072348,0.00033424,14]
[338994183,1727109052148,-500.0,0.00033424,30]
[338994184,1727109052160,-299.477044,0.0003349,14]
[338994185,1727109052170,-151.0,0.0003349,14]
[338994186,1727109052191,-391.486478,0.0003349,14]
[338994187,1727109052200,-391.486478,0.0003349,14]
[338994188,1727109052209,-151.0,0.0003349,14]
[338994189,1727109052218,-4309.370918,0.0003349,14]
[338994190,1727109052228,-4309.370918,0.0003349,14]
[338994191,1727109052237,-887.197973,0.0003349,2]
[338994192,1727109052247,-887.197973,0.0003349,2]
[338994193,1727109052256,-151.0,0.0003349,14]
[338994194,1727109052265,-151.0,0.0003349,14]
[338994195,1727109052275,-929.4729,0.0003349,14]
[338994196,1727109052284,-929.4729,0.0003349,14]
[338994197,1727109052293,-774.317821,0.0003349,14]
[338994198,1727109052303,-774.317821,0.0003349,14]
[338994199,1727109052312,-2758.427387,0.0003349,14]
[338994200,1727109052321,-2758.427387,0.0003349,14]
[338994201,1727109052331,-3000.0,0.000335,16]
[338994202,1727109052340,-150.112233,0.000335,6]
[338994203,1727109052350,-3000.0,0.0003351,16]
[338994204,1727109052359,-3000.0,0.0003352,16]
[338994205,1727109052368,-3000.0,0.0003353,16]
[338994206,1727109052379,-3000.0,0.0003354,16]
[338994207,1727109052388,-3000.0,0.0003355,16]
[338994208,1727109052398,-151.0,0.00033551,14]
[338994209,1727109052408,-237.310555,0.00033551,14]
[338994210,1727109052417,-151.0,0.00033551,14]
[338994211,1727109052426,-237.310555,0.00033551,14]
[338994212,1727109052436,-276.801319,0.00033551,14]
[338994213,1727109052445,-589.503631,0.00033551,14]
[338994214,1727109052454,-589.503631,0.00033551,14]
[338994215,1727109052464,-151.0,0.00033551,14]
[338994216,1727109052473,-151.0,0.00033551,14]
[338994217,1727109052482,-151.0,0.00033551,14]
[338994218,1727109052492,-946.063183,0.00033551,14]
[338994219,1727109052501,-946.063183,0.00033551,14]
[338994220,1727109052510,-151.0,0.00033551,14]
[338994221,1727109052519,-151.0,0.00033551,14]
[338994222,1727109052528,-489.448798,0.00033551,14]
[338994223,1727109052538,-836.942813,0.00033551,14]
[338994224,1727109052547,-720.440175,0.00033551,14]
[338994225,1727109052556,-489.448798,0.00033551,14]
[338994226,1727109052565,-720.440175,0.00033551,14]
[338994227,1727109052574,-836.942813,0.00033551,14]
[338994228,1727109052583,-682.339607,0.00033551,14]
[338994229,1727109052593,-151.0,0.00033551,14]
[338994230,1727109052602,-682.339607,0.00033551,14]
[338994231,1727109052611,-2684.728953,0.00033551,14]
[338994232,1727109052620,-2684.728953,0.00033551,14]
[338994233,1727109052630,-188.921246,0.00033551,14]
[338994234,1727109052639,-188.921246,0.00033551,14]
[338994235,1727109052648,-381.589065,0.00033551,14]
[338994236,1727109052658,-1162.072348,0.00033551,14]
[338994237,1727109052667,-381.589065,0.00033551,14]
[338994238,1727109052677,-1162.072348,0.00033551,14]
[338994239,1727109052686,-3000.0,0.0003356,16]
[338994240,1727109052695,-500.0,0.0003356,30]
[338994241,1727109052705,-1216.05,0.0003356,30]
[338994242,1727109052714,-500.0,0.0003356,30]
[338994243,1727109052724,-500.0,0.0003356,30]
[338994244,1727109052733,-500.0,0.00033561,30]
[338994245,1727109052742,-519.97537027,0.00033561,30]
[338994246,1727109052750,-500.0,0.00033561,120]
[338994247,1727109052759,-500.0,0.00033561,30]
[338994248,1727109052768,-330.89,0.00033561,30]
[338994249,1727109052777,-500.0,0.00033561,30]
[338994250,1727109052786,-500.0,0.00033561,30]
[338994251,1727109052795,-500.0,0.00033561,30]
[338994252,1727109052804,-2662.27,0.00033561,30]
[338994253,1727109052814,-500.0,0.00033561,30]
[338994254,1727109052823,-333.49,0.00033561,30]
[338994255,1727109052832,-918.02,0.00033561,2]
[338994256,1727109052840,-500.0,0.00033561,30]
[338994257,1727109052849,-500.0,0.00033561,30]
[338994258,1727109052858,-500.0,0.00033561,30]
[338994259,1727109052867,-151.0,0.00033561,14]
[338994260,1727109052876,-391.486478,0.00033561,14]
[338994261,1727109052886,-391.486478,0.00033561,14]
[338994262,1727109052895,-501.37712453,0.00033561,30]
[338994263,1727109052904,-500.0,0.00033561,30]
[338994264,1727109052915,-151.0,0.00033561,14]
[338994265,1727109052924,-500.0,0.00033561,30]
[338994266,1727109052934,-500.0,0.00033561,30]
[338994267,1727109052943,-433.15,0.00033561,30]
[338994268,1727109052952,-500.0,0.00033561,30]
[338994269,1727109052961,-500.0,0.00033561,30]
[338994270,1727109052970,-4309.370918,0.00033561,14]
[338994271,1727109052980,-4309.370918,0.00033561,14]
[338994272,1727109052990,-500.0,0.00033561,30]
[338994273,1727109052999,-887.197973,0.00033561,2]
[338994274,1727109053009,-887.197973,0.00033561,2]
[338994275,1727109053018,-629.65,0.00033561,30]
[338994276,1727109053028,-500.0,0.00033561,30]
[338994277,1727109053037,-178.96,0.00033561,30]
[338994278,1727109053047,-500.0,0.00033561,30]
[338994279,1727109053057,-500.0,0.00033561,30]
[338994280,1727109053066,-1112.96,0.00033561,30]
[338994281,1727109053075,-304.51088219,0.00033561,30]
[338994282,1727109053085,-538.45,0.00033561,120]
[338994283,1727109053094,-500.0,0.00033561,30]
[338994284,1727109053104,-21285.95,0.00033561,18]
[338994285,1727109053114,-500.0,0.00033561,30]
[338994286,1727109053123,-3090.81,0.00033561,21]
[338994287,1727109053132,-500.0,0.00033561,30]
[338994288,1727109053141,-500.0,0.00033561,30]
[338994289,1727109053153,-977.0,0.00033561,30]
[338994290,1727109053163,-500.0,0.00033561,30]
[338994291,1727109053171,-500.0,0.00033561,30]
[338994292,1727109053180,-808.45,0.00033561,30]
[338994293,1727109053191,-500.0,0.00033561,30]
[338994294,1727109053200,-151.0,0.00033561,14]
[338994295,1727109053210,-151.0,0.00033561,14]
[338994296,1727109053220,-500.0,0.00033561,30]
[338994297,1727109053232,-500.0,0.00033561,30]
[338994298,1727109053242,-582.3309099,0.00033561,30]
[338994299,1727109053251,-500.0,0.00033561,30]
[338994300,1727109053261,-500.0,0.00033561,30]
[338994301,1727109053271,-929.4729,0.00033561,14]
[338994302,1727109053280,-1295.57,0.00033561,30]
[338994303,1727109053290,-1141.59,0.00033561,30]
[338994304,1727109053300,-929.4729,0.00033561,14]
[338994305,1727109053309,-774.317821,0.00033561,14]
[338994306,1727109053319,-774.317821,0.00033561,14]
[338994307,1727109053329,-500.0,0.00033561,30]
[338994308,1727109053339,-653.76,0.00033561,30]
[338994309,1727109053349,-500.0,0.00033561,30]
[338994310,1727109053358,-2758.427387,0.00033561,14]
[338994311,1727109053367,-500.0,0.00033561,30]
[338994312,1727109053377,-2758.427387,0.00033561,14]
[338994313,1727109053387,-500.0,0.00033561,30]
[338994314,1727109053397,-500.0,0.00033561,30]
[338994315,1727109053407,-500.0,0.00033561,30]
[338994316,1727109053417,-500.0,0.00033561,30]
[338994317,1727109053427,-81.38619335,0.00033561,30]
[338994318,1727109083490,270.013846,0.00027397,2]
[338994319,1727109158070,846.6227906,0.0002878,2]
[338994320,1727109193871,327.748454,0.00028212,2]
[338994321,1727109252894,941.09294283,0.0002901,2]
[338994323,1727109313520,24900.0,0.00028212,2]
[338994324,1727109387356,160.988346,0.00028423,2]
[338994325,1727109387581,160.988346,0.00028635,2]
[338994326,1727109387805,160.988346,0.00028846,2]
[338994328,1727109743016,1041.370602,0.00028425,2]
[338994329,1727109807411,168.270566,0.00028156,2]
[338994330,1727109809210,163.874227,0.0002843,2]
[338994333,1727109875862,291.793755,0.00027397,2]
[338994334,1727109891729,15336.86734064,0.0002843,2]
[338994335,1727109891757,9563.13265936,0.0002843,2]
[338994336,1727109953166,-160.988346,0.00029058,2]
[338994337,1727109953188,-161.59323425,0.0002911,2]
[338994338,1727109955085,-233.4099195,0.0002911,2]
[338994340,1727109974190,337.23025367,0.00022,2]
[338994345,1727110037095,-646.36744825,0.0002911,2]
[338994346,1727110037117,-160.988346,0.00029269,2]
[338994347,1727110037141,-160.988346,0.00029481,2]
[338994348,1727110037163,-160.988346,0.00029693,2]
[338994349,1727110037183,-1041.370602,0.00029795,2]
[338994350,1727110037204,-160.988346,0.00029904,2]
[338994351,1727110037224,-300.0,0.00029998,2]
[338994352,1727110037245,-300.0,0.00029998,2]
[338994353,1727110037268,-500.0,0.00029999,2]
[338994354,1727110037291,-500.0,0.00029999,2]
[338994355,1727110037313,-385.67040896,0.00029999,2]
[338994356,1727110043097,-114.32959104,0.00029999,2]
[338994357,1727110043119,-208.073,0.00029999,24]
[338994358,1727110043142,-201.16812078,0.00029999,2]
[338994359,1727110051153,-298.83187922,0.00029999,2]
[338994360,1727110051175,-919.98438029,0.0003,2]
[338994361,1727110058547,500.0,0.000285,7]
[338994362,1727110058982,500.0,0.000285,7]
[338994363,1727110059382,500.0,0.000285,7]
[338994364,1727110059811,500.0,0.000285,7]
[338994365,1727110060213,500.0,0.000285,7]
[338994366,1727110060600,150.77386948,0.000285,7]
[338994367,1727110146098,-1461.00385174,0.000299,2]
[338994368,1727110146119,-278.0,0.00029999,2]
[338994369,1727110146141,-300.0,0.00029999,2]
[338994370,1727110146162,-11267.93232883,0.0003,2]